bitfinex/quotes_ETHUSD_20250114
["timestamp","ask_amount","ask_price","bid_price","bid_amount"]
[1736838344637,11.55323854,3193.4,3193.3,4.95083723]
[1736838345143,11.55323854,3193.4,3193.3,0.10956593]
[1736838345519,0.0075,3192.6,3191.8,0.03132634]
[1736838345827,3.96125,3192.6,3191.9,0.11043084]
[1736838346226,3.96125,3192.6,3191.7,3.98884691]
[1736838346422,3.96125,3192.6,3192.0,0.11036904]
[1736838346623,3.96125,3192.6,3191.7,3.95752]
[1736838346828,3.96125,3192.6,3192.1,0.11030724]
[1736838347141,3.96125,3192.6,3192.2,0.11024544]
[1736838347142,4.357375,3192.6,3192.2,0.11024544]
[1736838347452,0.62155648,3192.4,3192.2,0.11024544]
[1736838347619,0.62155648,3192.4,3191.7,0.8244]
[1736838347819,3.96128,3192.6,3192.3,0.11018365]
[1736838348018,3.96128,3192.6,3191.7,3.95749]
[1736838348226,4.357408,3192.6,3192.4,0.11012186]
[1736838348555,4.357408,3192.6,3191.7,3.95749]
[1736838348936,0.62287427,3192.5,3191.8,0.11049265]
[1736838349517,3.75521427,3192.5,3191.8,0.11049265]
[1736838350555,0.7534,3192.2,3191.8,0.11049265]
[1736838350964,0.7534,3192.2,3191.4,0.7654]
[1736838351175,0.7534,3192.2,3191.9,0.11140899]
[1736838351321,0.7534,3192.2,3191.4,0.7654]
[1736838351522,0.7534,3192.2,3191.5,0.11165624]
[1736838351732,3.88611,3192.2,3191.5,0.11165624]
[1736838351928,0.015,3192.1,3191.5,0.11165624]
[1736838352131,3.13285,3192.0,3191.5,0.11165624]
[1736838352320,0.7534,3191.7,3191.5,0.11165624]
[1736838352530,0.7534,3191.7,3191.3,5.56555085]
[1736838352758,3.9016,3191.7,3191.6,0.11174064]
[1736838352957,0.015,3191.6,3191.3,5.56555085]
[1736838353259,3.13333,3191.5,3191.3,5.56555085]
[1736838353764,0.015,3191.6,3191.3,5.56555085]
[1736838353932,3.14831,3191.6,3191.3,5.56555085]
[1736838354857,3.14831,3191.6,3191.4,0.11187553]
[1736838355025,0.397671,3191.5,3191.4,0.11187553]
[1736838355225,0.397671,3191.5,3191.3,5.56555085]
[1736838355661,0.397671,3191.5,3191.4,0.11187553]
[1736838356062,3.530991,3191.5,3191.3,5.56555085]
[1736838356268,0.397671,3191.5,3191.3,5.56555085]
[1736838356559,0.0075,3191.5,3191.4,0.11221867]
[1736838357263,0.62743314,3191.5,3191.4,0.11221867]
[1736838358888,0.62743314,3191.5,3191.3,5.56555085]
[1736838359572,0.7534,3191.7,3191.3,5.56555085]
[1736838359774,0.63342905,3191.9,3191.3,6.36295085]
[1736838359972,0.63342905,3191.9,3191.4,0.11222429]
[1736838360167,1.08875896,3191.9,3191.4,0.11222429]
[1736838360365,0.7871,3192.0,3191.4,0.11222429]
[1736838360560,0.7946,3192.2,3191.4,0.14355626]
[1736838360760,0.7871,3192.2,3191.4,0.14355626]
[1736838360974,3.91948,3192.5,3191.7,0.7974]
[1736838361179,3.0,3192.4,3191.7,0.7974]
[1736838361488,3.0,3192.4,3191.8,0.11250578]
[1736838361655,0.0075,3192.3,3191.8,0.11250578]
[1736838361849,0.0075,3192.3,3191.7,0.7974]
[1736838362277,0.0075,3192.3,3191.8,0.11233137]
[1736838362481,3.13218,3192.7,3191.8,0.03132878]
[1736838362885,0.0075,3192.6,3191.9,0.11226957]
[1736838363193,0.400178,3192.6,3191.9,0.11226957]
[1736838363408,0.400178,3192.6,3192.0,0.7974]
[1736838363908,3.532418,3192.6,3192.1,0.11201096]
[1736838365593,0.400178,3192.6,3192.1,0.11201096]
[1736838365760,3.14724,3192.6,3192.1,0.11201096]
[1736838366300,0.015,3192.6,3192.1,0.11201096]
[1736838367589,3.14725,3192.6,3192.1,0.11201096]
[1736838368091,0.015,3192.4,3192.1,0.11201096]
[1736838368254,3.13263,3192.2,3191.7,6.265029]
[1736838368458,3.13263,3192.2,3191.8,0.11200517]
[1736838368754,3.13263,3192.2,3191.7,6.265029]
[1736838368890,3.13263,3192.2,3191.9,0.11194336]
[1736838369069,3.447393,3192.2,3191.7,5.467629]
[1736838369395,3.447393,3192.2,3191.8,0.11200517]
[1736838369571,0.314763,3192.2,3191.8,0.11200517]
[1736838369781,0.314763,3192.2,3191.7,5.467629]
[1736838370002,0.6319713,3192.1,3191.9,0.11194336]
[1736838370182,1.03990173,3192.1,3191.8,0.11200517]
[1736838370383,4.5593013,3192.1,3192.0,0.11188155]
[1736838370614,4.5593013,3192.1,3191.9,0.11194336]
[1736838370784,4.5593013,3192.1,3191.7,5.467629]
[1736838370995,4.5593013,3192.1,3191.8,5.467629]
[1736838371201,3.58876013,3192.0,3191.8,5.57963417]
[1736838371383,0.45593013,3192.0,3191.8,5.57963417]
[1736838371904,0.0075,3192.1,3191.8,5.57963417]
[1736838372134,3.13229,3192.6,3191.8,5.57963417]
[1736838372286,3.13229,3192.6,3191.8,5.61096302]
[1736838373106,0.0075,3192.5,3191.8,5.61096302]
[1736838375328,3.0,3192.9,3192.1,0.8013]
[1736838375497,0.61319,3192.8,3192.2,0.11145979]
[1736838376417,1.23461903,3192.8,3192.2,0.11145979]
[1736838376624,0.62142903,3192.8,3192.2,0.11145979]
[1736838377420,0.0075,3192.8,3192.2,0.11145979]
[1736838380228,3.13927,3193.1,3192.2,0.11145979]
[1736838380394,3.13187,3193.0,3192.2,0.11145979]
[1736838380596,3.13187,3193.0,3192.2,3.27541177]
[1736838381104,4.15532385,3193.3,3192.3,2.8013]
[1736838381296,4.15532385,3193.3,3192.6,0.8013]
[1736838381496,0.72922534,3193.2,3192.7,0.11115086]
[1736838381697,3.0,3193.2,3192.7,0.11115086]
[1736838382739,3.15191956,3193.4,3192.7,0.11115086]
[1736838383536,3.13157,3193.3,3192.7,0.11115086]
[1736838383806,0.00542956,3193.4,3192.7,0.11115086]
[1736838383954,0.00542956,3193.4,3192.7,3.24326086]
[1736838384162,0.02042956,3193.4,3192.7,3.24326086]
[1736838384461,0.02042956,3193.4,3192.7,0.11115086]
[1736838384670,0.39908246,3193.4,3192.7,0.11115086]
[1736838386146,0.38408246,3193.4,3192.7,0.11115086]
[1736838386346,0.00542956,3193.4,3192.8,0.83261833]
[1736838386534,0.00542956,3193.4,3192.9,0.11066182]
[1736838388047,3.13696956,3193.4,3192.9,0.11066182]
[1736838388623,0.0075,3193.3,3192.9,0.11066182]
[1736838388861,3.13908,3193.3,3192.9,0.11066182]
[1736838389458,0.31520096,3193.2,3192.9,0.11066182]
[1736838389666,0.832,3193.1,3192.9,0.11066182]
[1736838389832,3.69685,3193.0,3192.9,0.11066182]
[1736838390034,3.13223,3192.7,3192.0,0.7843]
[1736838390339,3.13223,3192.7,3192.1,0.11115609]
[1736838391862,3.13241,3192.5,3192.1,0.11115609]
[1736838392050,3.527351,3192.5,3192.1,0.11115609]
[1736838392252,0.394941,3192.5,3192.1,0.11115609]
[1736838392451,3.13226,3192.6,3192.1,0.11115609]
[1736838392859,3.13247,3192.4,3192.1,0.11115609]
[1736838393030,0.0075,3192.5,3192.1,0.11115609]
[1736838393236,3.13263,3192.2,3192.1,0.11115609]
[1736838393446,3.13263,3192.2,3191.8,5.467629]
[1736838393942,0.565,3192.1,3191.9,0.11143149]
[1736838394128,3.14043,3191.9,3191.8,5.467629]
[1736838394662,3.14793,3191.9,3191.8,5.467629]
[1736838395290,3.14043,3191.9,3191.8,5.467629]
[1736838395772,0.63488377,3192.0,3191.8,5.467629]
[1736838396086,3.14793,3191.9,3191.8,5.467629]
[1736838396385,3.52621138,3191.9,3191.8,5.467629]
[1736838397289,0.63488377,3192.0,3191.8,5.467629]
[1736838398057,0.64238377,3192.0,3191.9,0.111409]
[1736838398588,0.64238377,3192.0,3191.8,5.467629]
[1736838398958,0.64238377,3192.0,3191.9,0.111409]
[1736838399157,3.77521377,3192.0,3191.8,5.467629]
[1736838399379,4.18406145,3192.0,3191.8,5.467629]
[1736838401108,4.51493,3191.9,3191.8,5.467629]
[1736838401997,10.52103276,3191.9,3191.8,5.467629]
[1736838408363,7.52243,3191.9,3191.8,5.467629]
[1736838408563,10.52103276,3191.9,3191.8,5.467629]
[1736838408783,11.67750918,3191.9,3191.8,5.467629]
[1736838411018,11.67000918,3191.9,3191.8,5.467629]
[1736838411160,3.0075,3191.9,3191.8,5.467629]
[1736838411364,0.63488377,3192.0,3191.8,6.251929]
[1736838411611,0.64238377,3192.0,3191.9,0.11260713]
[1736838412096,3.94924,3192.6,3191.9,0.11260713]
[1736838412097,0.5575,3192.4,3191.9,0.11260713]
[1736838412302,3.94924,3192.6,3191.9,0.11260713]
[1736838412461,3.13259,3192.3,3191.9,0.11260713]
[1736838412661,0.0075,3192.2,3191.8,5.467629]
[1736838413000,3.69033,3192.0,3191.9,0.11245522]
[1736838413165,3.69783,3192.0,3191.9,0.11245522]
[1736838413369,0.0075,3191.9,3191.6,5.462969]
[1736838413578,0.0075,3191.9,3191.7,0.11257884]
[1736838413579,0.0075,3191.8,3191.7,0.11257884]
[1736838414899,3.77300049,3192.1,3191.7,0.11257884]
[1736838415067,0.64023049,3192.1,3191.7,0.11257884]
[1736838418125,3.13265,3192.2,3191.7,0.11257884]
[1736838419685,0.0075,3191.9,3191.7,0.11257884]
[1736838419882,3.13293,3191.9,3191.7,0.11257884]
[1736838420386,0.015,3192.0,3191.7,0.11257884]
[1736838420990,0.0075,3192.0,3191.7,0.11257884]
[1736838421342,3.13278,3192.1,3191.7,0.11257884]
[1736838421481,0.015,3192.2,3191.7,0.11257884]
[1736838421687,0.015,3192.2,3191.8,0.8296]
[1736838422000,0.63826113,3192.3,3191.9,0.11217955]
[1736838422800,3.13198,3192.9,3192.0,0.8296]
[1736838423119,3.13198,3192.9,3192.0,0.86092644]
[1736838423322,0.015,3192.8,3192.2,0.8296]
[1736838423699,3.015,3192.8,3192.3,0.11192111]
[1736838424122,3.015,3192.8,3192.2,0.8296]
[1736838424308,0.63870851,3192.7,3192.2,0.8296]
[1736838424511,6.13551232,3193.4,3192.4,0.8296]
[1736838424512,3.13169,3193.2,3192.4,0.8296]
[1736838424818,3.13168,3193.2,3192.5,0.11153315]
[1736838425738,3.00403232,3193.4,3192.5,0.11153315]
[1736838425739,0.61454354,3193.0,3192.5,0.11153315]
[1736838428131,3.74639354,3193.0,3192.5,0.11153315]
[1736838428526,0.015,3192.9,3192.5,0.11153315]
[1736838429230,3.74639354,3193.0,3192.5,0.11153315]
[1736838429231,0.61454354,3193.0,3192.5,0.11153315]
[1736838429553,0.0075,3192.9,3192.5,0.11153315]
[1736838430035,0.61454354,3193.0,3192.5,0.11153315]
[1736838430036,0.61454354,3193.0,3192.6,0.8296]
[1736838430415,0.61454354,3193.0,3192.7,0.11099903]
[1736838432137,3.74639354,3193.0,3192.7,0.11099903]
[1736838432337,0.37463935,3192.9,3192.7,0.11099903]
[1736838432527,0.37463935,3192.9,3192.4,0.8296]
[1736838432697,3.74639354,3193.0,3192.4,0.8296]
[1736838432903,0.61454354,3193.0,3192.4,0.8296]
[1736838433105,0.61454354,3193.0,3192.5,0.11112259]
[1736838435617,0.61454354,3193.0,3192.6,0.7548]
[1736838436023,0.61454354,3193.0,3192.7,0.11099903]
[1736838436310,0.6107731,3193.0,3192.7,0.11099903]
[1736838437733,0.6107731,3193.0,3192.6,0.7548]
[1736838438043,0.6107731,3193.0,3192.7,0.11099903]
[1736838441567,3.7426431,3193.0,3192.7,0.11099903]
[1736838441851,3.14704,3192.8,3192.7,0.11099903]
[1736838442209,0.0075,3192.7,3192.2,0.7548]
[1736838442443,3.13965,3192.7,3192.3,0.11051473]
[1736838442659,0.0075,3192.4,3192.0,0.7548]
[1736838442969,3.13283,3192.0,3191.8,5.462969]
[1736838443614,0.015,3191.9,3191.8,5.462969]
[1736838443814,3.93333,3191.9,3191.8,5.462969]
[1736838444139,5.17652328,3191.9,3191.8,5.462969]
[1736838444336,8.18402328,3191.9,3191.8,5.462969]
[1736838448835,6.14043,3191.9,3191.8,5.462969]
[1736838449729,0.0075,3191.9,3191.8,5.462969]
[1736838451023,3.14793,3191.9,3191.8,5.462969]
[1736838452321,0.7701,3192.5,3191.9,0.7709]
[1736838452538,3.13231,3192.6,3191.9,0.7709]
[1736838452748,3.13231,3192.6,3192.0,0.10337246]
[1736838452946,0.015,3192.5,3192.0,0.10337246]
[1736838453349,0.015,3192.2,3192.0,0.10337246]
[1736838453549,3.69773,3192.1,3192.0,0.10337246]
[1736838453750,3.69043,3191.9,3191.8,5.462969]
[1736838453940,4.47553,3191.9,3191.8,5.462969]
[1736838456031,7.47553,3191.9,3191.8,5.462969]
[1736838456225,8.83621628,3191.9,3191.8,5.462969]
[1736838457529,11.83481904,3191.9,3191.8,5.462969]
[1736838457963,12.47362317,3191.9,3191.8,5.462969]
[1736838458553,9.47502041,3191.9,3191.8,5.462969]
[1736838461054,12.47362317,3191.9,3191.8,5.462969]
[1736838461227,11.70352317,3191.9,3191.8,5.462969]
[1736838463743,12.47362317,3191.9,3191.8,5.462969]
[1736838473170,9.47502041,3191.9,3191.8,5.462969]
[1736838473374,8.11433413,3191.9,3191.8,5.462969]
[1736838488693,8.11433413,3191.9,3191.8,5.07060709]
[1736838488894,8.11433413,3191.9,3191.8,4.77614031]
[1736838489084,8.11433413,3191.9,3191.8,4.88076244]
[1736838489284,8.11433413,3191.9,3191.8,7.5e-06]
[1736838489486,3.69891,3190.9,3190.8,0.7883]
[1736838490225,3.14141,3190.9,3190.8,0.89005302]
[1736838490428,6.13373,3191.1,3190.8,0.89005302]
[1736838491429,3.69141,3190.9,3190.8,0.89005302]
[1736838492521,3.69891,3190.9,3190.8,0.10175302]
[1736838492933,0.565,3190.8,3190.6,0.7883]
[1736838493433,3.69902,3190.8,3190.7,0.10181487]
[1736838493731,3.69902,3190.8,3190.6,0.7883]
[1736838493900,3.1416,3190.7,3190.6,0.7883]
[1736838495121,3.6991,3190.7,3190.6,0.7883]
[1736838495303,0.565,3190.6,3189.7,0.7974]
[1736838495632,0.565,3190.6,3189.6,3.13517]
[1736838495633,3.76963201,3190.9,3189.8,0.82874666]
[1736838495833,0.63571201,3190.9,3190.0,0.7974]
[1736838496130,0.0075,3190.8,3190.2,0.7974]
[1736838496306,0.0075,3190.8,3190.4,0.7974]
[1736838496910,0.0075,3190.8,3190.5,0.10240384]
[1736838497495,0.0075,3190.7,3190.5,0.10240384]
[1736838497698,3.1417,3190.6,3190.5,0.10240384]
[1736838498099,0.0075,3190.5,3190.4,0.7974]
[1736838498330,0.63571201,3190.9,3190.4,0.7974]
[1736838498647,0.0075,3190.8,3190.4,0.7974]
[1736838498962,0.0075,3190.8,3190.5,0.10243187]
[1736838499099,3.69152,3190.8,3190.5,0.10243187]
[1736838500398,0.5575,3190.8,3190.5,0.10243187]
[1736838500604,0.0075,3190.6,3190.5,0.10243187]
[1736838501631,3.6917,3190.6,3190.5,0.10243187]
[1736838501835,3.6992,3190.6,3190.5,0.10243187]
[1736838502034,3.6918,3190.5,3190.4,0.7974]
[1736838502335,0.5575,3190.5,3190.4,0.7974]
[1736838505338,3.13405,3190.8,3190.4,0.7974]
[1736838505512,0.63571201,3190.9,3190.4,0.7974]
[1736838505835,0.0075,3190.8,3190.5,0.10243187]
[1736838506736,0.5575,3190.8,3190.5,0.10243187]
[1736838510219,0.0075,3190.8,3190.5,0.10243187]
[1736838510543,3.13346,3191.4,3190.6,0.7723]
[1736838510840,3.0,3191.3,3190.6,0.7723]
[1736838511140,3.0,3191.3,3190.8,0.7723]
[1736838511551,0.61657576,3191.2,3190.9,0.10225734]
[1736838512252,0.0075,3191.1,3190.9,0.10225734]
[1736838512475,3.14881,3191.0,3190.5,0.7723]
[1736838512618,0.0075,3190.6,3190.5,0.7723]
[1736838512818,3.1417,3190.6,3190.5,0.7723]
[1736838513018,3.1417,3190.6,3190.3,0.7723]
[1736838513414,3.13437,3190.5,3190.3,0.7723]
[1736838513816,3.1419,3190.4,3189.5,0.7723]
[1736838514233,3.1419,3190.4,3189.6,0.7723]
[1736838515541,3.1419,3190.4,3189.6,3.13518]
[1736838515843,3.1419,3190.4,3189.7,0.7723]
[1736838517950,0.63858844,3190.1,3189.7,0.7723]
[1736838521102,3.1419,3190.4,3189.7,0.7723]
[1736838521395,0.0075,3190.2,3189.7,0.7723]
[1736838521599,3.142,3190.3,3189.7,0.7723]
[1736838521600,0.0075,3190.0,3189.7,0.7723]
[1736838521819,3.1349,3189.9,3189.1,0.831]
[1736838522016,0.0075,3189.8,3189.1,0.831]
[1736838522806,0.46446895,3189.8,3189.1,0.831]
[1736838523187,0.0075,3189.7,3189.1,0.831]
[1736838524272,3.14261,3189.7,3189.1,0.831]
[1736838525222,0.0075,3189.5,3189.1,0.831]
[1736838525592,0.8277,3189.4,3188.6,3.90736]
[1736838525793,0.015,3189.1,3187.9,5.13683]
[1736838526135,0.0075,3188.8,3188.1,0.7712]
[1736838526287,0.0075,3188.8,3188.1,0.86898977]
[1736838526710,0.015,3188.8,3188.1,0.86898977]
[1736838526904,3.15102,3188.8,3188.1,0.86898977]
[1736838527141,0.0075,3188.6,3188.1,0.86898977]
[1736838527507,3.15126,3188.6,3188.1,0.86898977]
[1736838527705,0.0075,3188.4,3188.1,0.86898977]
[1736838528029,3.1439,3188.4,3188.1,0.09778977]
[1736838528199,0.8277,3188.4,3188.1,0.09778977]
[1736838528405,3.15148,3188.3,3187.7,0.7712]
[1736838528636,0.0075,3188.1,3187.7,0.7712]
[1736838528818,3.1517,3188.1,3187.7,0.7712]
[1736838529000,3.1517,3188.1,3187.3,0.7712]
[1736838529921,0.0075,3187.9,3187.3,0.7712]
[1736838531021,0.015,3188.0,3187.3,0.7712]
[1736838531225,0.43407034,3188.0,3187.3,0.7712]
[1736838531723,0.0075,3187.8,3187.3,0.7712]
[1736838536139,0.0075,3187.8,3187.0,0.7712]
[1736838536923,0.0075,3187.8,3187.0,3.90894]
[1736838537569,3.015,3187.8,3187.0,0.7712]
[1736838537857,0.0075,3187.6,3187.0,0.7712]
[1736838539549,0.64463599,3187.6,3187.0,0.7712]
[1736838540764,0.0075,3187.6,3187.0,3.90894]
[1736838540950,0.0075,3187.6,3187.1,0.09806535]
[1736838542870,0.38427,3187.7,3187.1,0.09806535]
[1736838543067,2.99860276,3188.3,3187.3,3.13736]
[1736838543068,0.7847,3188.1,3187.3,3.13736]
[1736838543434,0.4394258,3188.0,3187.4,0.09796927]
[1736838543763,0.7847,3188.1,3187.5,3.13724]
[1736838544174,0.7847,3188.1,3187.6,0.09775543]
[1736838545141,3.92137,3188.1,3187.6,0.09775543]
[1736838545348,0.0075,3188.4,3187.6,0.09775543]
[1736838545555,0.0075,3188.4,3187.3,3.13744]
[1736838545854,0.30811028,3188.4,3187.3,3.13744]
[1736838546065,0.64302638,3188.1,3187.4,0.09774458]
[1736838546775,3.13697,3187.8,3187.4,0.09774458]
[1736838547138,3.00610276,3188.0,3187.0,0.7732]
[1736838547447,3.15223,3187.6,3186.8,3.0]
[1736838547647,0.015,3187.5,3186.9,0.09811632]
[1736838548955,3.13736,3187.4,3186.7,0.7732]
[1736838549190,0.0075,3187.2,3187.0,0.09805432]
[1736838549399,0.7847,3187.1,3186.4,0.7732]
[1736838549711,3.92236,3187.1,3186.4,0.7732]
[1736838549914,0.0075,3187.0,3186.4,0.7732]
[1736838551309,3.14524,3187.0,3186.4,0.7732]
[1736838551531,0.400494,3187.0,3186.1,0.7732]
[1736838551840,3.13801,3186.8,3186.1,0.7732]
[1736838552185,0.7847,3186.7,3186.1,0.7732]
[1736838552908,0.0075,3186.6,3185.8,0.7732]
[1736838553386,3.14573,3186.6,3185.8,0.7732]
[1736838553692,0.0075,3186.4,3185.8,0.7732]
[1736838554001,3.13772,3187.1,3186.0,3.0]
[1736838554202,3.13683,3188.0,3186.3,0.7816]
[1736838554203,0.7957,3187.0,3186.3,0.7816]
[1736838554401,0.7957,3187.6,3186.7,3.13799]
[1736838554605,0.7957,3187.6,3186.8,0.81297609]
[1736838554788,0.0075,3187.5,3186.8,0.81297678]
[1736838554987,0.0075,3187.5,3186.8,0.7816]
[1736838555210,3.14476,3187.5,3186.6,0.7816]
[1736838555582,3.14476,3187.5,3186.6,3.95106567]
[1736838555782,0.0075,3187.5,3186.6,0.81297567]
[1736838555981,0.0075,3187.5,3186.8,3.13794]
[1736838556205,0.0075,3187.5,3186.8,0.03137589]
[1736838556406,0.0075,3187.5,3186.9,0.09897037]
[1736838556407,3.14483,3187.5,3186.9,0.09897037]
[1736838556812,3.14483,3187.5,3186.6,3.95105588]
[1736838557000,3.14483,3187.5,3187.0,0.09890837]
[1736838557334,0.46362424,3187.5,3187.1,0.09884637]
[1736838557633,3.13763,3187.2,3186.3,0.9196]
[1736838557796,0.0075,3187.3,3186.3,0.9196]
[1736838557797,0.0075,3187.0,3186.3,0.9196]
[1736838558002,0.0075,3187.0,3186.4,0.09899941]
[1736838558202,0.015,3187.3,3186.4,0.09899941]
[1736838558402,0.0075,3186.7,3186.4,0.09899941]
[1736838558809,0.0075,3186.7,3186.0,0.7816]
[1736838559014,0.0075,3186.7,3186.5,0.09891491]
[1736838559342,0.8032,3187.2,3186.6,0.0988529]
[1736838559638,0.0075,3187.1,3186.6,0.0988529]
[1736838559842,0.7957,3187.2,3186.5,0.7816]
[1736838560006,0.7957,3187.2,3186.7,0.09911117]
[1736838560205,0.7957,3187.2,3186.6,3.13806]
[1736838560206,0.7957,3187.2,3186.6,3.2373231]
[1736838560449,0.8032,3187.5,3186.8,0.09913908]
[1736838560735,0.8032,3187.5,3186.6,3.13806]
[1736838560736,0.8032,3187.5,3186.9,0.09907708]
[1736838561034,0.8032,3187.5,3186.6,3.13806]
[1736838561035,3.94052,3187.5,3186.6,3.13806]
[1736838561240,3.94052,3187.5,3187.0,0.09901508]
[1736838561539,4.39664324,3187.5,3187.1,0.09895308]
[1736838561700,4.39664324,3187.5,3186.6,3.1694374]
[1736838561905,0.8032,3187.5,3186.7,0.09920109]
[1736838562106,0.0075,3187.3,3186.7,0.09920109]
[1736838564121,0.0075,3187.3,3186.8,0.09913908]
[1736838564361,0.0075,3187.3,3186.5,3.91983]
[1736838564556,0.0075,3187.3,3186.9,0.09907708]
[1736838564774,0.0075,3187.3,3186.5,3.91983]
[1736838564972,0.0075,3187.3,3187.0,0.09901508]
[1736838565178,0.7957,3187.5,3186.6,3.1694274]
[1736838565377,0.0075,3187.4,3187.1,0.09895308]
[1736838565550,0.0075,3187.4,3186.6,3.1694274]
[1736838565750,0.0075,3187.4,3187.2,0.09889109]
[1736838565951,0.0075,3187.4,3186.6,3.1694274]
[1736838566159,0.0075,3187.4,3187.3,0.09882911]
[1736838566366,0.0075,3187.4,3186.8,0.03137588]
[1736838566659,0.0075,3187.4,3187.3,0.09882911]
[1736838567063,0.7957,3187.5,3187.3,0.09882911]
[1736838567284,0.7957,3187.8,3187.1,0.7816]
[1736838567490,0.64957091,3187.7,3187.4,0.09876712]
[1736838567688,0.64957091,3187.7,3186.9,0.7816]
[1736838567888,3.14468,3187.6,3187.5,0.09851969]
[1736838568101,3.60292509,3187.6,3186.9,0.7816]
[1736838568271,3.14468,3187.6,3187.0,0.09882963]
[1736838569773,0.0075,3187.6,3187.0,0.09882963]
[1736838569977,0.64207091,3187.7,3187.0,0.09882963]
[1736838570602,3.77914091,3187.7,3187.0,0.09882963]
[1736838570895,3.14469,3187.6,3187.0,0.09882963]
[1736838573696,3.14469,3187.6,3187.0,0.13020396]
[1736838573896,3.14469,3187.6,3187.0,0.09882963]
[1736838576119,0.0075,3187.6,3187.0,0.13020393]
[1736838576271,0.64207091,3187.7,3187.0,0.13020393]
[1736838576476,0.7957,3187.8,3187.2,3.13754]
[1736838576720,0.0075,3188.0,3187.3,0.85481213]
[1736838576874,0.63010684,3187.8,3187.3,0.85481213]
[1736838581207,0.63010684,3187.8,3187.4,0.03137258]
[1736838581410,0.7951,3188.1,3187.4,3.02997534]
[1736838581612,2.99860276,3189.0,3187.7,3.13696]
[1736838581613,0.64202884,3188.2,3187.7,3.13696]
[1736838581908,0.0075,3188.0,3187.8,0.09757531]
[1736838582114,0.0075,3188.0,3187.3,3.89391]
[1736838582408,0.0075,3188.0,3187.4,0.09776703]
[1736838582581,0.0075,3188.0,3187.4,0.12913706]
[1736838583984,0.0075,3188.0,3187.4,3.26646706]
[1736838585087,0.0075,3188.0,3187.5,3.13722]
[1736838585392,0.64202884,3188.2,3187.8,3.13695]
[1736838585815,0.64202884,3188.2,3187.9,0.09738416]
[1736838588004,0.7951,3188.3,3187.9,0.09738416]
[1736838588234,0.7951,3188.7,3188.0,0.03136587]
[1736838588419,0.7951,3188.7,3188.0,3.16810587]
[1736838588606,0.7951,3188.7,3188.1,0.09725463]
[1736838588803,1.43901654,3188.7,3188.1,0.09725463]
[1736838589199,0.0075,3188.6,3188.1,0.09725463]
[1736838589534,0.0075,3188.6,3187.8,0.7565]
[1736838589718,0.0075,3188.6,3187.9,0.09737854]
[1736838589926,0.7951,3188.5,3187.9,0.09737854]
[1736838590232,3.9314,3188.5,3187.9,0.09737854]
[1736838593011,3.13637,3188.4,3187.9,0.09737854]
[1736838593411,3.13637,3188.4,3187.5,6.89369]
[1736838593952,3.13637,3188.4,3187.6,0.09756445]
[1736838595644,3.13637,3188.4,3187.6,0.12893031]
[1736838595947,3.13637,3188.4,3187.6,0.09756445]
[1736838596918,3.13637,3188.4,3187.7,3.0]
[1736838597158,3.13637,3188.4,3187.8,0.09722707]
[1736838597519,0.7951,3188.2,3187.8,0.09722707]
[1736838597848,0.0075,3188.5,3186.8,7.28648511]
[1736838597849,0.7951,3188.0,3187.3,3.13742]
[1736838598069,0.8026,3188.0,3187.9,0.09716511]
[1736838598219,0.8026,3188.0,3187.2,3.13749]
[1736838598417,0.8026,3188.0,3187.9,0.09703595]
[1736838598750,1.2607353,3188.0,3187.3,3.0]
[1736838599050,0.8026,3188.0,3187.4,0.0973795]
[1736838601355,0.7951,3188.0,3187.4,0.12874932]
[1736838601649,0.7951,3188.0,3187.6,3.13714]
[1736838602061,0.7951,3188.0,3187.7,0.09739014]
[1736838602845,0.7951,3188.0,3187.5,3.94894]
[1736838603343,0.7951,3188.0,3187.6,0.09737348]
[1736838603750,0.7951,3188.0,3187.3,3.94909]
[1736838604052,0.7951,3188.0,3187.4,0.09741881]
[1736838604265,1.256601,3189.2,3187.4,0.12878744]
[1736838604417,0.7792,3188.7,3187.6,2.99860276]
[1736838604618,4.3068,3188.7,3187.8,3.13689]
[1736838604843,0.0075,3188.6,3187.8,3.13689]
[1736838605045,0.0075,3188.6,3187.9,0.09713703]
[1736838605969,0.62723878,3188.4,3187.9,0.09713703]
[1736838607541,0.0075,3188.6,3187.9,0.09713703]
[1736838607742,1.39923373,3188.7,3188.1,3.13665]
[1736838607948,1.39923373,3188.7,3188.2,0.09660862]
[1736838608473,1.39923373,3188.7,3188.2,3.23314862]
[1736838608693,0.7867,3189.0,3188.3,3.13639]
[1736838609044,0.7867,3189.0,3188.4,0.09648473]
[1736838609837,0.7867,3189.0,3188.4,3.26418642]
[1736838610039,1.4147143,3189.0,3188.4,3.26418642]
[1736838610259,0.7867,3189.0,3188.5,0.8117]
[1736838610459,0.7792,3189.0,3188.4,3.23280473]
[1736838610668,0.7792,3189.0,3188.6,0.09636085]
[1736838610940,0.7792,3189.0,3188.7,0.09629892]
[1736838611141,0.7792,3189.0,3188.4,3.13632]
[1736838611364,0.7792,3189.0,3188.5,0.09642279]
[1736838612037,0.7792,3189.0,3188.5,0.12778169]
[1736838612238,0.7792,3189.0,3188.5,3.26404169]
[1736838612668,0.7792,3189.0,3188.6,3.13616]
[1736838612838,0.7792,3189.3,3188.7,0.03135887]
[1736838613044,0.7792,3189.3,3188.7,0.12765779]
[1736838613444,0.61607486,3189.2,3188.7,0.09629892]
[1736838613661,0.0075,3188.9,3188.7,0.09629892]
[1736838613856,0.0075,3188.9,3188.3,3.8117]
[1736838613857,0.0075,3188.9,3188.3,3.0]
[1736838614061,0.0075,3188.9,3188.8,0.09623699]
[1736838614624,0.0075,3188.9,3188.2,6.13655]
[1736838614751,0.0075,3188.9,3188.8,0.09623699]
[1736838614947,0.0075,3188.9,3188.2,3.0]
[1736838615264,0.0075,3188.9,3187.4,3.45161]
[1736838615265,3.13626,3188.6,3188.3,0.09654667]
[1736838615690,0.7986,3189.1,3188.3,3.13639]
[1736838616179,0.0075,3189.0,3188.4,0.09628823]
[1736838616948,0.0075,3189.0,3188.2,0.03136003]
[1736838617287,0.0075,3189.0,3188.3,0.09635018]
[1736838617858,0.0075,3189.0,3188.3,3.23279018]